[Event "*** SCC Grand Prix: Titled Tuesday Blitz"]
[Site "Chess.com"]
[Date "2020.10.13"]
[Round "2"]
[White "Sn00pPawn"]
[Black "fabianvivasz"]
[Result "0-1"]
[WhiteElo "1970"]
[BlackElo "2369"]
[TimeControl "180+1"]
[EndTime "10:18:07 PDT"]
[Termination "fabianvivasz won on time"]

1. e4 {[%clk 0:03:00.9]} 1... e5 {[%clk 0:02:57.1]} 2. Nf3 {[%clk 0:02:52.6]}
2... Nc6 {[%clk 0:02:56.3]} 3. Bb5 {[%clk 0:02:52.9]} 3... f5 {[%clk 0:02:55.3]}
4. Nc3 {[%clk 0:02:48.3]} 4... fxe4 {[%clk 0:02:52.7]} 5. Nxe4 {[%clk 0:02:43]}
5... Nf6 {[%clk 0:02:53.1]} 6. Nxf6+ {[%clk 0:02:36.3]} 6... Qxf6 {[%clk
0:02:53.6]} 7. O-O {[%clk 0:02:36.3]} 7... Be7 {[%clk 0:02:45.2]} 8. Bxc6 {[%clk
0:02:10]} 8... dxc6 {[%clk 0:02:32]} 9. d4 {[%clk 0:01:55.6]} 9... e4 {[%clk
0:02:17.9]} 10. Ng5 {[%clk 0:01:37.3]} 10... Qg6 {[%clk 0:02:06.8]} 11. h4
{[%clk 0:01:11.9]} 11... h6 {[%clk 0:01:09.9]} 12. h5 {[%clk 0:01:11.3]} 12...
Qf5 {[%clk 0:01:08]} 13. Nh3 {[%clk 0:01:07.4]} 13... Be6 {[%clk 0:01:03.4]} 14.
Nf4 {[%clk 0:01:04.2]} 14... Bf7 {[%clk 0:00:58.2]} 15. Re1 {[%clk 0:00:51.5]}
15... O-O-O {[%clk 0:00:48.7]} 16. Be3 {[%clk 0:00:48.7]} 16... Bd6 {[%clk
0:00:38.5]} 17. Qd2 {[%clk 0:00:39.2]} 17... Bxf4 {[%clk 0:00:36.3]} 18. Bxf4
{[%clk 0:00:38.2]} 18... Bxh5 {[%clk 0:00:35.5]} 19. Bg3 {[%clk 0:00:31.7]}
19... g5 {[%clk 0:00:33.1]} 20. c4 {[%clk 0:00:27.7]} 20... Bf7 {[%clk
0:00:28.8]} 21. c5 {[%clk 0:00:18.1]} 21... Qxc5 {[%clk 0:00:11.5]} 22. dxc5
{[%clk 0:00:19]} 22... Rxd2 {[%clk 0:00:10.8]} 23. Rxe4 {[%clk 0:00:19.7]} 23...
Rhd8 {[%clk 0:00:06.3]} 24. b3 {[%clk 0:00:16.2]} 24... h5 {[%clk 0:00:04.8]}
25. Re7 {[%clk 0:00:13.7]} 25... R8d7 {[%clk 0:00:04.6]} 26. Rae1 {[%clk
0:00:11.9]} 26... h4 {[%clk 0:00:03.9]} 27. Rxd7 {[%clk 0:00:11.1]} 27... Kxd7
{[%clk 0:00:03.7]} 28. Be5 {[%clk 0:00:10.3]} 28... Rxa2 {[%clk 0:00:04.2]} 29.
Bf6 {[%clk 0:00:10.4]} 29... g4 {[%clk 0:00:04.7]} 30. Re7+ {[%clk 0:00:09.4]}
30... Kc8 {[%clk 0:00:04.8]} 31. Rxf7 {[%clk 0:00:09.4]} 31... g3 {[%clk
0:00:05]} 32. fxg3 {[%clk 0:00:07.2]} 32... hxg3 {[%clk 0:00:05.9]} 33. Bh4
{[%clk 0:00:06.6]} 33... Ra1+ {[%clk 0:00:05.9]} 34. Rf1 {[%clk 0:00:06.3]}
34... Ra3 {[%clk 0:00:06.6]} 35. Bxg3 {[%clk 0:00:05]} 35... Rxb3 {[%clk
0:00:07]} 36. Bh4 {[%clk 0:00:03.5]} 36... Rc3 {[%clk 0:00:07.2]} 37. Rf8+
{[%clk 0:00:02.9]} 37... Kd7 {[%clk 0:00:07.2]} 38. Rf7+ {[%clk 0:00:03.2]}
38... Kc8 {[%clk 0:00:06]} 39. Bf2 {[%clk 0:00:02]} 39... a5 {[%clk 0:00:05.4]}
40. Rf4 {[%clk 0:00:02.2]} 40... Ra3 {[%clk 0:00:03.8]} 41. g4 {[%clk
0:00:02.1]} 41... a4 {[%clk 0:00:04.4]} 42. g5 {[%clk 0:00:02.3]} 42... Ra1+
{[%clk 0:00:03.9]} 43. Kg2 {[%clk 0:00:02.5]} 43... Rd1 {[%clk 0:00:03.7]} 0-1

[Event "*** SCC Grand Prix: Titled Tuesday Blitz"]
[Site "Chess.com"]
[Date "2020.10.13"]
[Round "2"]
[White "Superfelix"]
[Black "hungrycaterpillar4"]
[Result "1-0"]
[WhiteElo "2468"]
[BlackElo "2687"]
[TimeControl "180+1"]
[EndTime "10:18:09 PDT"]
[Termination "Superfelix won by checkmate"]

1. e4 {[%clk 0:03:00.9]} 1... c5 {[%clk 0:02:56.8]} 2. Nf3 {[%clk 0:03:00.8]}
2... Nc6 {[%clk 0:02:56.8]} 3. Bc4 {[%clk 0:02:59.7]} 3... g6 {[%clk 0:02:56.4]}
4. h4 {[%clk 0:02:59.3]} 4... Nf6 {[%clk 0:02:52.7]} 5. e5 {[%clk 0:02:56.6]}
5... Ng4 {[%clk 0:02:52.9]} 6. Bxf7+ {[%clk 0:02:52.5]} 6... Kxf7 {[%clk
0:02:48.4]} 7. Ng5+ {[%clk 0:02:53.1]} 7... Kg8 {[%clk 0:02:32.7]} 8. Qxg4
{[%clk 0:02:51.4]} 8... Nxe5 {[%clk 0:02:33.2]} 9. Qe4 {[%clk 0:02:44.5]} 9...
Bg7 {[%clk 0:02:32.9]} 10. Qd5+ {[%clk 0:02:40.7]} 10... e6 {[%clk 0:02:24.9]}
11. Nxe6 {[%clk 0:02:40]} 11... Qe7 {[%clk 0:02:15.5]} 12. Ng5+ {[%clk
0:02:19.5]} 12... Nf7+ {[%clk 0:02:10.2]} 13. Kf1 {[%clk 0:02:09.9]} 13... d6
{[%clk 0:02:10.1]} 14. Nc3 {[%clk 0:02:06.9]} 14... h6 {[%clk 0:02:07.8]} 15.
Nxf7 {[%clk 0:02:03]} 15... Qxf7 {[%clk 0:02:08.7]} 16. Qxd6 {[%clk 0:01:59.2]}
16... Bd4 {[%clk 0:01:58.7]} 17. Qg3 {[%clk 0:01:47]} 17... Kh7 {[%clk
0:01:52.4]} 18. d3 {[%clk 0:01:36.8]} 18... Re8 {[%clk 0:01:48.6]} 19. Ne4
{[%clk 0:01:33.5]} 19... Be5 {[%clk 0:00:43.9]} 20. Qe3 {[%clk 0:01:27.9]} 20...
Qg7 {[%clk 0:00:39.6]} 21. Qxc5 {[%clk 0:01:06.7]} 21... Bf5 {[%clk 0:00:38.3]}
22. Qc4 {[%clk 0:00:47]} 22... Rac8 {[%clk 0:00:37.5]} 23. Ng5+ {[%clk
0:00:46.1]} 23... Kh8 {[%clk 0:00:27.2]} 24. Nf7+ {[%clk 0:00:40.2]} 24... Kg8
{[%clk 0:00:15.8]} 25. Nxh6+ {[%clk 0:00:37.3]} 25... Kh7 {[%clk 0:00:16]} 26.
Nxf5 {[%clk 0:00:37.2]} 26... gxf5 {[%clk 0:00:16.9]} 27. Qb3 {[%clk 0:00:32.8]}
27... f4 {[%clk 0:00:17]} 28. Bd2 {[%clk 0:00:30.9]} 28... f3 {[%clk 0:00:17.2]}
29. g3 {[%clk 0:00:30.7]} 29... Bxb2 {[%clk 0:00:15.1]} 30. Rb1 {[%clk
0:00:29.7]} 30... Bd4 {[%clk 0:00:10.5]} 31. Qxb7 {[%clk 0:00:29.2]} 31... Rxc2
{[%clk 0:00:10.1]} 32. Qxg7+ {[%clk 0:00:10.3]} 32... Kxg7 {[%clk 0:00:11]} 33.
Be1 {[%clk 0:00:06.8]} 33... Ree2 {[%clk 0:00:10.3]} 34. Rh2 {[%clk 0:00:06.1]}
34... Rxa2 {[%clk 0:00:10.8]} 35. g4 {[%clk 0:00:06.2]} 35... a5 {[%clk
0:00:10.8]} 36. g5 {[%clk 0:00:06.6]} 36... a4 {[%clk 0:00:11.2]} 37. h5 {[%clk
0:00:07]} 37... Rab2 {[%clk 0:00:11.7]} 38. h6+ {[%clk 0:00:07.2]} 38... Kg6
{[%clk 0:00:12.1]} 39. Rc1 {[%clk 0:00:06.2]} 39... Rbc2 {[%clk 0:00:11.8]} 40.
Rb1 {[%clk 0:00:06.6]} 40... a3 {[%clk 0:00:12.4]} 41. h7 {[%clk 0:00:05.3]}
41... a2 {[%clk 0:00:12.5]} 42. Rb6+ {[%clk 0:00:05.5]} 42... Bxb6 {[%clk
0:00:11.6]} 43. h8=Q {[%clk 0:00:05.4]} 43... Rxe1+ {[%clk 0:00:12.1]} 44. Kxe1
{[%clk 0:00:05.1]} 44... Rc1+ {[%clk 0:00:08.3]} 45. Kd2 {[%clk 0:00:04.5]}
45... a1=Q {[%clk 0:00:08.7]} 46. Rh6+ {[%clk 0:00:03.9]} 46... Kxg5 {[%clk
0:00:08.7]} 47. Rh5+ {[%clk 0:00:03.9]} 47... Kg6 {[%clk 0:00:09.3]} 48. Qh7+
{[%clk 0:00:04]} 48... Kf6 {[%clk 0:00:08.9]} 49. Rf5+ {[%clk 0:00:04.4]} 49...
Ke6 {[%clk 0:00:09.3]} 50. Qf7+ {[%clk 0:00:05.3]} 50... Kd6 {[%clk 0:00:09.7]}
51. Rd5+ {[%clk 0:00:05.9]} 51... Kc6 {[%clk 0:00:08.7]} 52. Qd7# {[%clk
0:00:06.8]} 1-0

[Event "*** SCC Grand Prix: Titled Tuesday Blitz"]
[Site "Chess.com"]
[Date "2020.10.13"]
[Round "2"]
[White "GelmanAlexander"]
[Black "Oleksandr_Bortnyk"]
[Result "0-1"]
[WhiteElo "2579"]
[BlackElo "2903"]
[TimeControl "180+1"]
[EndTime "10:18:10 PDT"]
[Termination "Oleksandr_Bortnyk won by resignation"]

1. d4 {[%clk 0:03:00.9]} 1... d6 {[%clk 0:02:54.8]} 2. Nc3 {[%clk 0:03:00.2]}
2... e5 {[%clk 0:02:53.6]} 3. Nf3 {[%clk 0:02:57.3]} 3... Nd7 {[%clk 0:02:48.5]}
4. e4 {[%clk 0:02:54.6]} 4... Ngf6 {[%clk 0:02:48.1]} 5. g4 {[%clk 0:02:54]}
5... h6 {[%clk 0:02:45.1]} 6. Rg1 {[%clk 0:02:46.1]} 6... c6 {[%clk 0:02:45.4]}
7. a4 {[%clk 0:02:44.7]} 7... a5 {[%clk 0:02:37.3]} 8. h4 {[%clk 0:02:41.2]}
8... g6 {[%clk 0:02:34.5]} 9. g5 {[%clk 0:02:34.9]} 9... hxg5 {[%clk 0:02:35.2]}
10. Bxg5 {[%clk 0:02:31]} 10... Be7 {[%clk 0:02:33.8]} 11. Qd2 {[%clk
0:02:30.5]} 11... Qb6 {[%clk 0:02:33.6]} 12. O-O-O {[%clk 0:02:29.8]} 12... exd4
{[%clk 0:02:18.2]} 13. Nxd4 {[%clk 0:02:28.8]} 13... Nc5 {[%clk 0:02:18.6]} 14.
f3 {[%clk 0:02:27.1]} 14... Qb4 {[%clk 0:02:10.1]} 15. Qf4 {[%clk 0:02:04.2]}
15... Nh5 {[%clk 0:01:48]} 16. Qe3 {[%clk 0:02:04.3]} 16... Nxa4 {[%clk
0:01:23.1]} 17. Nxa4 {[%clk 0:01:59.9]} 17... Qxa4 {[%clk 0:01:24]} 18. Bxe7
{[%clk 0:01:57.4]} 18... Kxe7 {[%clk 0:01:24.9]} 19. e5 {[%clk 0:01:37.1]} 19...
Qa1+ {[%clk 0:01:17.8]} 20. Kd2 {[%clk 0:01:36.1]} 20... Qxb2 {[%clk 0:01:18.7]}
21. exd6+ {[%clk 0:00:57.7]} 21... Kf8 {[%clk 0:00:43.2]} 22. Bc4 {[%clk
0:00:34.9]} 22... Qb4+ {[%clk 0:00:35.4]} 23. Kd3 {[%clk 0:00:35.3]} 23... Qxd6
{[%clk 0:00:34.8]} 24. Ke2 {[%clk 0:00:16.6]} 24... Qh2+ {[%clk 0:00:27.7]} 25.
Ke1 {[%clk 0:00:15.6]} 25... Bh3 {[%clk 0:00:26.5]} 26. Ne2 {[%clk 0:00:08.7]}
26... Re8 {[%clk 0:00:20.3]} 27. Qd4 {[%clk 0:00:09.1]} 27... Rh6 {[%clk
0:00:07.4]} 28. Rd2 {[%clk 0:00:08.4]} 28... Nf4 {[%clk 0:00:04.9]} 29. Kd1
{[%clk 0:00:06.8]} 29... Nxe2 {[%clk 0:00:04.5]} 30. Rxe2 {[%clk 0:00:06.8]}
30... Rxe2 {[%clk 0:00:04.2]} 31. Bxe2 {[%clk 0:00:07.7]} 31... Qc7 {[%clk
0:00:03.9]} 32. Rg5 {[%clk 0:00:06.6]} 32... Be6 {[%clk 0:00:03.6]} 33. Qf6
{[%clk 0:00:03.1]} 33... Qe7 {[%clk 0:00:02.8]} 34. Qe5 {[%clk 0:00:03]} 34...
Rxh4 {[%clk 0:00:02.8]} 35. Rg1 {[%clk 0:00:02.1]} 35... Qd7+ {[%clk 0:00:02.9]}
36. Ke1 {[%clk 0:00:02.5]} 36... Qd5 {[%clk 0:00:02.8]} 37. Qb8+ {[%clk
0:00:02.4]} 37... Kg7 {[%clk 0:00:02.9]} 38. Qg3 {[%clk 0:00:02.1]} 38... Qd4
{[%clk 0:00:03.1]} 39. Qxh4 {[%clk 0:00:01.4]} 39... Qxh4+ {[%clk 0:00:03.3]}
40. Kd2 {[%clk 0:00:02.3]} 40... Qc4 {[%clk 0:00:03.6]} 41. Bxc4 {[%clk
0:00:01.5]} 41... Bxc4 {[%clk 0:00:04.2]} 42. Rg4 {[%clk 0:00:02.1]} 42... Bd5
{[%clk 0:00:04.5]} 43. Kc3 {[%clk 0:00:02.6]} 43... Bxf3 {[%clk 0:00:04.6]} 44.
Rf4 {[%clk 0:00:03]} 44... Bd5 {[%clk 0:00:04.9]} 45. Kd4 {[%clk 0:00:03.5]}
45... b5 {[%clk 0:00:05.4]} 46. Kc5 {[%clk 0:00:03.8]} 46... a4 {[%clk 0:00:06]}
47. Rf1 {[%clk 0:00:03.8]} 47... a3 {[%clk 0:00:06.3]} 48. Ra1 {[%clk
0:00:03.7]} 48... a2 {[%clk 0:00:06.8]} 49. Rf1 {[%clk 0:00:03.4]} 49... g5
{[%clk 0:00:07]} 50. Kd4 {[%clk 0:00:03.9]} 50... g4 {[%clk 0:00:07.4]} 51. Ke5
{[%clk 0:00:03.5]} 51... g3 {[%clk 0:00:07.6]} 52. Kf4 {[%clk 0:00:03.8]} 52...
g2 {[%clk 0:00:08.1]} 53. Rg1 {[%clk 0:00:04.4]} 53... Kf6 {[%clk 0:00:08.1]}
54. Ke3 {[%clk 0:00:04.4]} 54... Ke5 {[%clk 0:00:08.5]} 55. Kd3 {[%clk
0:00:04.9]} 55... Kf4 {[%clk 0:00:08.9]} 56. Ke2 {[%clk 0:00:04.8]} 56... Kg3
{[%clk 0:00:09.2]} 57. Ke3 {[%clk 0:00:04.8]} 57... f5 {[%clk 0:00:09.4]} 0-1

[Event "*** SCC Grand Prix: Titled Tuesday Blitz"]
[Site "Chess.com"]
[Date "2020.10.13"]
[Round "2"]
[White "esrosenberg"]
[Black "olksuna"]
[Result "0-1"]
[WhiteElo "2297"]
[BlackElo "2619"]
[TimeControl "180+1"]
[EndTime "10:18:16 PDT"]
[Termination "olksuna won by checkmate"]

1. Nf3 {[%clk 0:03:00.9]} 1... Nf6 {[%clk 0:02:59.5]} 2. c4 {[%clk 0:03:00.9]}
2... b6 {[%clk 0:02:59.5]} 3. g3 {[%clk 0:03:00.8]} 3... Bb7 {[%clk 0:02:59.7]}
4. Bg2 {[%clk 0:03:01.4]} 4... g6 {[%clk 0:03:00.4]} 5. Nc3 {[%clk 0:02:59.9]}
5... Bg7 {[%clk 0:02:59.9]} 6. b3 {[%clk 0:02:59.1]} 6... O-O {[%clk 0:02:58.5]}
7. Bb2 {[%clk 0:02:59.6]} 7... c5 {[%clk 0:02:58.8]} 8. O-O {[%clk 0:02:58.3]}
8... d6 {[%clk 0:02:59.2]} 9. d4 {[%clk 0:02:58.5]} 9... cxd4 {[%clk 0:02:58.9]}
10. Qxd4 {[%clk 0:02:58.5]} 10... Nbd7 {[%clk 0:02:58.9]} 11. Qh4 {[%clk
0:02:53.1]} 11... Rc8 {[%clk 0:02:58]} 12. Rad1 {[%clk 0:02:41.2]} 12... Rc5
{[%clk 0:02:56.7]} 13. Nd5 {[%clk 0:02:35.3]} 13... Bxd5 {[%clk 0:02:21.9]} 14.
cxd5 {[%clk 0:02:31.9]} 14... Rxd5 {[%clk 0:02:22]} 15. Rxd5 {[%clk 0:02:30.9]}
15... Nxd5 {[%clk 0:02:22.9]} 16. Bxg7 {[%clk 0:02:31]} 16... Kxg7 {[%clk
0:02:22.9]} 17. Qd4+ {[%clk 0:02:09]} 17... N5f6 {[%clk 0:02:21.3]} 18. g4
{[%clk 0:01:54.7]} 18... h6 {[%clk 0:02:16.9]} 19. h4 {[%clk 0:01:51.7]} 19...
Kg8 {[%clk 0:02:17.1]} 20. Rc1 {[%clk 0:01:30.9]} 20... Qb8 {[%clk 0:02:13]} 21.
Bh3 {[%clk 0:01:19.6]} 21... Rc8 {[%clk 0:01:52.2]} 22. Rxc8+ {[%clk 0:01:04.2]}
22... Qxc8 {[%clk 0:01:53.1]} 23. g5 {[%clk 0:01:04.6]} 23... hxg5 {[%clk
0:01:52.6]} 24. hxg5 {[%clk 0:01:04.8]} 24... Nh5 {[%clk 0:01:52.7]} 25. Kh2
{[%clk 0:00:49.4]} 25... Qc7 {[%clk 0:01:47.2]} 26. Bg4 {[%clk 0:00:44.4]} 26...
Ng7 {[%clk 0:01:34.7]} 27. Kg2 {[%clk 0:00:35.4]} 27... Nc5 {[%clk 0:01:08]} 28.
b4 {[%clk 0:00:35.3]} 28... Nce6 {[%clk 0:01:06.7]} 29. Qe4 {[%clk 0:00:26.6]}
29... Qd8 {[%clk 0:00:58.7]} 30. Qb7 {[%clk 0:00:22.6]} 30... Qc7 {[%clk
0:00:51.7]} 31. Qa8+ {[%clk 0:00:21.9]} 31... Kh7 {[%clk 0:00:49.1]} 32. e3
{[%clk 0:00:20.4]} 32... a5 {[%clk 0:00:46]} 33. bxa5 {[%clk 0:00:17.9]} 33...
bxa5 {[%clk 0:00:46.9]} 34. a4 {[%clk 0:00:18.3]} 34... Nd8 {[%clk 0:00:35.7]}
35. Qd5 {[%clk 0:00:16.2]} 35... Nge6 {[%clk 0:00:26.3]} 36. Nd4 {[%clk
0:00:13.5]} 36... Nxd4 {[%clk 0:00:23.3]} 37. Qxd4 {[%clk 0:00:14.4]} 37... Nc6
{[%clk 0:00:13.8]} 38. Qc4 {[%clk 0:00:12.6]} 38... e6 {[%clk 0:00:13.7]} 39.
Bf3 {[%clk 0:00:12.3]} 39... d5 {[%clk 0:00:14.2]} 40. Qc5 {[%clk 0:00:12]}
40... Qd7 {[%clk 0:00:11.1]} 41. Qf8 {[%clk 0:00:11.8]} 41... Qe7 {[%clk
0:00:10.2]} 42. Qh6+ {[%clk 0:00:11.9]} 42... Kg8 {[%clk 0:00:09.9]} 43. e4
{[%clk 0:00:12.4]} 43... d4 {[%clk 0:00:09.3]} 44. e5 {[%clk 0:00:12.4]} 44...
Nxe5 {[%clk 0:00:09.4]} 45. Be4 {[%clk 0:00:12.1]} 45... d3 {[%clk 0:00:09.6]}
46. Qh1 {[%clk 0:00:11.3]} 46... d2 {[%clk 0:00:09.2]} 47. f4 {[%clk 0:00:11.4]}
47... Nc4 {[%clk 0:00:07.6]} 48. Qg1 {[%clk 0:00:09.1]} 48... d1=Q {[%clk
0:00:07]} 49. Qxd1 {[%clk 0:00:08.4]} 49... Ne3+ {[%clk 0:00:07.7]} 50. Kf3
{[%clk 0:00:09.3]} 50... Nxd1 {[%clk 0:00:08.4]} 51. Ke2 {[%clk 0:00:09.4]}
51... Nc3+ {[%clk 0:00:07.9]} 52. Kd3 {[%clk 0:00:09.6]} 52... Nxe4 {[%clk
0:00:08.4]} 53. Kxe4 {[%clk 0:00:10.5]} 53... Qc5 {[%clk 0:00:08.7]} 54. f5
{[%clk 0:00:11.4]} 54... Qxf5+ {[%clk 0:00:08.3]} 55. Kd4 {[%clk 0:00:12]} 55...
e5+ {[%clk 0:00:08.5]} 56. Kc4 {[%clk 0:00:12.9]} 56... e4 {[%clk 0:00:08.6]}
57. Kd4 {[%clk 0:00:12.9]} 57... e3 {[%clk 0:00:08.9]} 58. Kxe3 {[%clk
0:00:12.8]} 58... Qxg5+ {[%clk 0:00:09.5]} 59. Kf3 {[%clk 0:00:13.1]} 59... Qf5+
{[%clk 0:00:10]} 60. Kg3 {[%clk 0:00:13.6]} 60... Qe4 {[%clk 0:00:10.3]} 61. Kh3
{[%clk 0:00:13.8]} 61... Qxa4 {[%clk 0:00:11.2]} 62. Kg3 {[%clk 0:00:14.2]}
62... Qb4 {[%clk 0:00:12.1]} 63. Kh3 {[%clk 0:00:15.1]} 63... a4 {[%clk
0:00:12.8]} 64. Kg3 {[%clk 0:00:16]} 64... a3 {[%clk 0:00:13.7]} 65. Kh3 {[%clk
0:00:16.9]} 65... a2 {[%clk 0:00:14.5]} 66. Kg3 {[%clk 0:00:17.8]} 66... a1=Q
{[%clk 0:00:15]} 67. Kh3 {[%clk 0:00:18.7]} 67... Qaa3+ {[%clk 0:00:15.8]} 68.
Kg2 {[%clk 0:00:19.1]} 68... Qbb2+ {[%clk 0:00:16.4]} 69. Kf1 {[%clk 0:00:20]}
69... Qaa1# {[%clk 0:00:17.2]} 0-1

[Event "*** SCC Grand Prix: Titled Tuesday Blitz"]
[Site "Chess.com"]
[Date "2020.10.13"]
[Round "2"]
[White "orestn"]
[Black "AleksibFan"]
[Result "0-1"]
[WhiteElo "2312"]
[BlackElo "2566"]
[TimeControl "180+1"]
[EndTime "10:18:17 PDT"]
[Termination "AleksibFan won by resignation"]

1. e4 {[%clk 0:03:00.9]} 1... d5 {[%clk 0:02:59.9]} 2. exd5 {[%clk 0:03:00]}
2... Qxd5 {[%clk 0:03:00.8]} 3. Nc3 {[%clk 0:03:00.1]} 3... Qd6 {[%clk
0:03:01.1]} 4. d4 {[%clk 0:03:01]} 4... Nf6 {[%clk 0:03:01.4]} 5. Nb5 {[%clk
0:03:01]} 5... Qb6 {[%clk 0:03:01]} 6. c4 {[%clk 0:03:01.3]} 6... c6 {[%clk
0:02:59.1]} 7. Nc3 {[%clk 0:03:02.2]} 7... Bf5 {[%clk 0:02:57.8]} 8. Be2 {[%clk
0:03:02.4]} 8... e6 {[%clk 0:02:55.6]} 9. Nf3 {[%clk 0:03:02.9]} 9... Nbd7
{[%clk 0:02:54.5]} 10. Nh4 {[%clk 0:03:01]} 10... Bg6 {[%clk 0:02:53.7]} 11. O-O
{[%clk 0:02:58]} 11... Be7 {[%clk 0:02:52.8]} 12. g3 {[%clk 0:02:51.1]} 12...
O-O {[%clk 0:02:51.7]} 13. Nxg6 {[%clk 0:02:49.1]} 13... hxg6 {[%clk 0:02:51.2]}
14. Rb1 {[%clk 0:02:37]} 14... Rfe8 {[%clk 0:02:49.2]} 15. Be3 {[%clk
0:02:36.3]} 15... Qc7 {[%clk 0:02:45.8]} 16. Bf3 {[%clk 0:02:31.2]} 16... Rad8
{[%clk 0:02:38.7]} 17. Qe2 {[%clk 0:02:19.6]} 17... a6 {[%clk 0:02:17]} 18. Rfd1
{[%clk 0:02:17.8]} 18... Bf8 {[%clk 0:02:08.4]} 19. Rbc1 {[%clk 0:02:04]} 19...
e5 {[%clk 0:02:05.6]} 20. d5 {[%clk 0:02:02.3]} 20... e4 {[%clk 0:02:05.1]} 21.
Bg2 {[%clk 0:01:59.8]} 21... Qe5 {[%clk 0:01:53.6]} 22. dxc6 {[%clk 0:01:50.5]}
22... bxc6 {[%clk 0:01:54.5]} 23. Bd4 {[%clk 0:01:32.6]} 23... Qf5 {[%clk
0:01:49.7]} 24. h3 {[%clk 0:01:25.5]} 24... c5 {[%clk 0:01:24]} 25. Be3 {[%clk
0:01:24.5]} 25... g5 {[%clk 0:00:52.5]} 26. Nd5 {[%clk 0:01:17.3]} 26... Ne5
{[%clk 0:00:34.3]} 27. g4 {[%clk 0:01:08.2]} 27... Qg6 {[%clk 0:00:29.6]} 28.
Nxf6+ {[%clk 0:00:59]} 28... gxf6 {[%clk 0:00:30.5]} 29. Rxd8 {[%clk 0:00:55.3]}
29... Rxd8 {[%clk 0:00:31.4]} 30. Rd1 {[%clk 0:00:55.8]} 30... Rd3 {[%clk
0:00:14.9]} 31. b3 {[%clk 0:00:42.4]} 31... f5 {[%clk 0:00:14.3]} 32. gxf5
{[%clk 0:00:35.4]} 32... Qxf5 {[%clk 0:00:15.2]} 33. Bc1 {[%clk 0:00:34.6]}
33... Nf3+ {[%clk 0:00:11.3]} 34. Bxf3 {[%clk 0:00:33.3]} 34... Rxd1+ {[%clk
0:00:10.4]} 35. Qxd1 {[%clk 0:00:32.1]} 35... exf3 {[%clk 0:00:11.3]} 36. Qf1
{[%clk 0:00:28.1]} 36... Bd6 {[%clk 0:00:09.4]} 37. Kh1 {[%clk 0:00:21.4]} 37...
Kf8 {[%clk 0:00:06.6]} 38. Be3 {[%clk 0:00:19.7]} 38... g4 {[%clk 0:00:03.8]}
39. Qg1 {[%clk 0:00:17.1]} 39... gxh3 {[%clk 0:00:01.8]} 40. Qd1 {[%clk
0:00:13.2]} 40... Ke7 {[%clk 0:00:02.7]} 41. Qd5 {[%clk 0:00:10.4]} 41... Qe6
{[%clk 0:00:03.6]} 42. Qxe6+ {[%clk 0:00:10.2]} 42... Kxe6 {[%clk 0:00:03.3]}
43. Bh6 {[%clk 0:00:08.7]} 43... Kf5 {[%clk 0:00:03.8]} 44. Bg7 {[%clk
0:00:08.6]} 44... Ke4 {[%clk 0:00:04.7]} 45. Bh6 {[%clk 0:00:08.4]} 45... Kd3
{[%clk 0:00:04.8]} 46. Be3 {[%clk 0:00:09.3]} 46... Kc2 {[%clk 0:00:04.6]} 47.
b4 {[%clk 0:00:07.7]} 47... cxb4 {[%clk 0:00:04.2]} 48. c5 {[%clk 0:00:08.6]}
48... Bc7 {[%clk 0:00:04.5]} 49. c6 {[%clk 0:00:08.1]} 49... a5 {[%clk
0:00:04.5]} 50. Bc5 {[%clk 0:00:08.6]} 50... a4 {[%clk 0:00:04.6]} 51. Be7
{[%clk 0:00:08]} 51... b3 {[%clk 0:00:03.5]} 52. axb3 {[%clk 0:00:08.2]} 52...
axb3 {[%clk 0:00:04.4]} 53. Bf6 {[%clk 0:00:08.6]} 53... b2 {[%clk 0:00:04.4]}
54. Bxb2 {[%clk 0:00:08.3]} 54... Kxb2 {[%clk 0:00:05.3]} 55. Kg1 {[%clk
0:00:08.8]} 55... Kc3 {[%clk 0:00:06.2]} 56. Kh1 {[%clk 0:00:09.7]} 56... Kc4
{[%clk 0:00:07]} 0-1